[Event "26th Tamil Nadu IM-Norm Chennai 2024"]
[Site "Chennai"]
[Date "2024.09.04"]
[Round "8.1"]
[White "Harshad S"]
[Black "Manik, Mikulas"]
[Result "1-0"]
[ECO "B62"]
[WhiteElo "2275"]
[BlackElo "2320"]
[Annotator "TA"]
[PlyCount "89"]
[EventDate "2024.08.30"]
[EventCountry "IND"]
[SourceTitle "playchess.com"]
[Source "ChessBase"]
[SourceQuality "1"]
[TimeControl "5400+30"]

{[%evp 16,89,30,24,50,29,35,12,20,0,26,6,81,85,93,88,97,102,339,333,320,331,321,316,309,250,420,418,464,475,518,504,491,493,583,571,616,612,660,668,827,740,729,716,1035,828,826,575,562,541,597,584,950,946,854,433,866,864,714,426,440,444,455,452,460,476,481,482,484,485,528,523,554,550,528,512]} 1. e4 {[%emt 0:03:00]} c5 {[%emt 0:00:02]} 2. Nf3 {[%emt 0:00:12]} d6 {[%emt 0:00:03]} 3. d4 {[%emt 0:00:07]} cxd4 {[%emt 0:00:02]} 4. Nxd4 {[%emt 0:00:06]} Nf6 {[%emt 0:00:11]} 5. Nc3 {[%emt 0:00:03]} Nc6 {[%emt 0:00:02]} 6. Bg5 {[%emt 0:00:28]} e6 {[%emt 0:00:04]} 7. Qd3 {[%emt 0:00:03]} Bd7 {[%emt 0:00:23]} 8. O-O-O {[%emt 0:00:32]} a6 {[%emt 0:01:00]} 9. f4 {[%emt 0:01:06]} Be7 {[%emt 0:00:17]} 10. Nf3 {[%emt 0:01:17]} Qa5 {[%emt 0:00:34]} 11. Kb1 {[%emt 0:01:26]} Rd8 {[%emt 0:00:20] The position is equal.} 12. a3 {[%emt 0:15:22]} b5 {[%emt 0:24:28]} 13. e5 {[%emt 0:32:28]} (13. Nd2 {simplifies} h6 14. Bxf6 Bxf6 15. h4) 13... b4 {[%emt 0:01:28]} (13... dxe5 $11 14. fxe5 (14. Nxe5 Nxe5 15. fxe5 Bc6 $11) 14... Bc8) 14. exf6 $16 {[%emt 0:06:53]} gxf6 {[%emt 0:02:12] [#]} 15. Bxf6 {[%emt 0:02:27]} Bxf6 {[%emt 0:00:14]} 16. Ne4 {[%emt 0:00:04]} Bg7 {[%emt 0:00:05]} (16... Be7 $16) 17. Nxd6+ $18 {[%emt 0:03:47]} (17. Qxa6 bxa3 18. Nxd6+ (18. Qxa5 Nxa5 19. Rxd6 Rb8 $17) 18... Ke7 19. Qxa5 Nxa5 $17) 17... Ke7 {[%emt 0:00:06]} 18. Nb7 {[%emt 0:02:36] Excellent horsemanship.} (18. Qxa6 bxa3 19. Qxa5 Nxa5 $17) 18... Qc7 {[%emt 0:00:09]} 19. Nxd8 {[%emt 0:03:19]} Rxd8 {[%emt 0:00:06]} 20. Qe3 {[%emt 0:03:09] Hoping for Qc5+.} (20. Qxa6 Bc8 21. Qe2 Rxd1+ 22. Qxd1 bxa3 $14) 20... Qa5 $2 {[%emt 0:18:55] [#]} (20... bxa3 21. Qxa3+ Ke8) 21. a4 $1 {[%emt 0:02:26]} b3 {[%emt 0:04:21]} (21... Qxa4 22. f5) 22. cxb3 {[%emt 0:02:48] White is clearly winning.} (22. Qxb3 Bxb2 23. Qxb2 (23. Kxb2 Rb8 $18) 23... Rb8 $18) 22... Nb4 {[%emt 0:00:35][%cal Bc6b4,Bb4d5,Bd5b6,Bb6d7][%mdl 32]} 23. Ne5 {[%emt 0:02:42]} Nd5 {[%emt 0:03:43]} 24. Qa7 {[%emt 0:05:39] Black must now prevent Nc6+.} Ke8 {[%emt 0:01:04]} 25. Bc4 {[%emt 0:01:08]} Bxe5 {[%emt 0:03:38]} 26. fxe5 {[%emt 0:02:35]} Nb6 {[%emt 0:00:25]} 27. Qxa6 {[%emt 0:03:46]} Qc5 {[%emt 0:01:41] [#]} 28. Rxd7 $1 {[%emt 0:04:03]} Nxd7 {[%emt 0:02:12]} 29. Rd1 {[%emt 0:00:18]} Qxe5 {[%emt 0:00:50]} 30. Bb5 {[%emt 0:00:22]} Qc7 {[%emt 0:00:06]} 31. Rc1 {[%emt 0:00:48]} Qb8 {[%emt 0:00:48]} 32. Qc6 {[%emt 0:00:49] And now Rd1 would win.} Ke7 {[%emt 0:02:09]} 33. Qc7 {[%emt 0:00:38]} Qxc7 {[%emt 0:00:06]} 34. Rxc7 {[%emt 0:00:03][%mdl 4096] Endgame. KRB-KRN} Kd6 {[%emt 0:00:08]} 35. Rc6+ {[%emt 0:00:57]} Kd5 {[%emt 0:00:17]} (35... Ke7 $142 36. Rc7 h5 37. Rxd7+ (37. a5 Kd6 $18) 37... Rxd7 38. Bxd7 h4) 36. Rc1 {[%emt 0:00:20]} e5 {[%emt 0:00:50]} 37. Bc4+ {[%emt 0:00:41]} Kd6 {[%emt 0:00:13]} 38. Bxf7 {[%emt 0:00:06]} Ra8 {[%emt 0:00:43]} 39. Rd1+ {[%emt 0:00:13]} Kc7 {[%emt 0:00:21]} 40. Bd5 {[%emt 0:00:39]} Re8 {[%emt 0:00:16]} 41. Kc2 {[%emt 0:00:39]} e4 {[%emt 0:00:06]} 42. Bc4 {[%emt 0:00:30]} Ne5 {[%emt 0:00:57]} 43. Re1 {[%emt 0:00:34]} Ng4 {[%emt 0:00:14]} 44. h3 {[%emt 0:00:23]} Nf2 {[%emt 0:00:07]} 45. Kd2 {[%emt 0:00:30] Black did not feel at home in the position after the opening.   Weighted Error Value: White=0.28 (precise) /Black=0.53.  Loses game:     	---       	Black=1      Mistake:       	---       	Black=2      Inaccurate:     	---       	Black=2      OK:         	White=16    	Black=5      Best:        	White=2     	Black=1      Brilliant:      	White=1     	---} 1-0

[Event "26th Tamil Nadu IM-Norm Chennai 2024"]
[Site "Chennai"]
[Date "2024.09.04"]
[Round "8.2"]
[White "Daakshin Arun"]
[Black "Lokesh, N.."]
[Result "0-1"]
[ECO "D51"]
[WhiteElo "2290"]
[BlackElo "2222"]
[Annotator "TA"]
[PlyCount "58"]
[EventDate "2024.08.30"]
[EventCountry "IND"]
[SourceTitle "playchess.com"]
[Source "ChessBase"]
[SourceQuality "1"]
[TimeControl "5400+30"]

{[%evp 21,58,97,123,18,39,35,35,29,30,21,17,39,85,35,104,38,47,0,0,18,37,29,41,-60,-61,-36,-63,-420,-404,-391,-107,-809,-809,-801,-783,-29989,-29990,-29993,-29994]} 1. d4 {[%emt 0:00:03]} d5 {[%emt 0:00:44]} 2. c4 {[%emt 0:00:06]} e6 {[%emt 0:00:04]} 3. Nc3 {[%emt 0:00:04]} Nf6 {[%emt 0:00:04]} 4. Bg5 {[%emt 0:00:06]} Nbd7 {[%emt 0:00:08]} 5. e3 {[%emt 0:00:44]} Bb4 {[%emt 0:00:23]} 6. cxd5 {[%emt 0:00:50]} exd5 {[%emt 0:00:03]} 7. Bd3 {[%emt 0:00:08]} c5 {[%emt 0:00:05]} 8. Nge2 {[%emt 0:01:34]} c4 {[%emt 0:03:16]} 9. Bc2 {[%emt 0:00:51]} Qa5 {[%emt 0:01:51]} 10. O-O {[%emt 0:01:23]} O-O {[%emt 0:00:03]} 11. a3 {[%emt 0:04:11]} Bd6 {[%emt 0:02:22]} 12. Nf4 {[%emt 0:09:09]} (12. Qe1 $16) 12... h6 $11 {[%emt 0:02:08]} 13. Bxf6 {[%emt 0:00:47]} Nxf6 {[%emt 0:00:02]} 14. Nh5 {[%emt 0:01:57] Hoping for Nxf6+. White is slightly better.} Be7 {[%emt 0:10:24]} 15. Nxf6+ {[%emt 0:06:44]} Bxf6 {[%emt 0:00:11]} 16. Qh5 {[%emt 0:05:16]} Be6 {[%emt 0:07:04]} (16... Rd8 $1 $14) 17. Rad1 {[%emt 0:07:35]} ({White should play} 17. g4 $16) 17... Qb6 {[%emt 0:18:58]} (17... Rad8 $14) 18. Rd2 {[%emt 0:12:18]} (18. Nxd5 $16 Bxd5 19. Qxd5) 18... Rfd8 $14 {[%emt 0:09:00][%cal Og7g6]} 19. Bb1 {[%emt 0:03:43]} Rd6 {[%emt 0:07:08]} 20. f4 {[%emt 0:03:31]} Re8 {[%emt 0:02:57]} (20... Qd8 {simplifies} 21. g4 g6 22. Qh3 Bd7) 21. g4 {[%emt 0:07:55]} Bd7 {[%emt 0:04:35]} 22. Nxd5 {[%emt 0:07:47]} ({White must play} 22. g5 $1 $14 g6 23. Qf3 (23. Qxh6 Bg7 $11)) 22... Qb3 $1 $15 {[%emt 0:01:22][%cal Od6d5] And now ...Rxd5! would win.} 23. Nc3 {[%emt 0:06:32] Threatens to win with g5.} Rxe3 {[%emt 0:01:08]} 24. Ba2 $2 {[%emt 0:06:16][%mdl 8192] [#]} ({White has to play} 24. Qc5 $1 $15 Qb6 25. Nd5 Qxc5 26. dxc5 Rxd5 27. Rxd5) 24... Qb6 $1 $19 {[%emt 0:00:23]} 25. Bxc4 {[%emt 0:05:43]} (25. Nd5 Bxd4 (25... Bxg4 $2 26. Qxg4 Rxd5 27. Qc8+ Rd8 28. Qxc4 $19) 26. Bxc4 (26. Nxb6 $2 Rg3+ 27. Kh1 Bc6+ $19) 26... Bc6 $19 (26... Bxb2 $2 27. Nxb6 g6 28. Qxh6 $18)) 25... Be6 {[%emt 0:02:07] A strong pair of Bishops.} (25... Bxd4 $2 26. Qxf7+ (26. Bxf7+ $2 Kh8 $19) 26... Kh7 27. Qg8+ Kg6 28. Bf7+ Kf6 29. Kh1 $18) (25... Re7 $19 {is more deadly.} 26. Nd5 Bxd4+ 27. Kg2 Bc6 (27... Bxb2 $2 28. Nxe7+ Kh7 29. Rxd6 $18)) 26. Nd5 $2 {[%emt 0:03:03][%mdl 8192] [#]} (26. Bxe6 $17 Rexe6 27. Qb5 Bxd4+ (27... Rxd4 28. Qxb6 Rxb6 29. Re2 $19) 28. Kh1) 26... Rxd5 $1 {[%emt 0:02:22][%mdl 512]} 27. Bxd5 {[%emt 0:00:04]} g6 {[%emt 0:00:05]} 28. Qxh6 {[%emt 0:00:21]} Bxd5 {[%emt 0:00:09]} 29. Rfd1 {[%emt 0:02:44]} Qe6 {[%emt 0:01:34] Weighted Error Value: White=0.92/Black=0.24 (precise) .  Loses game:     	White=2     	---        Missed win:     	---       	Black=1      Mistake:       	White=3     	Black=2      Inaccurate:     	White=1     	---        OK:         	White=8     	Black=4      Best:        	White=1     	Black=1      Strong:       	---       	Black=2      Brilliant:      	---       	Black=1} 0-1

[Event "26th Tamil Nadu IM-Norm Chennai 2024"]
[Site "Chennai"]
[Date "2024.09.04"]
[Round "8.3"]
[White "Borgaonkar Akshay"]
[Black "Vahidov, Tair"]
[Result "1/2-1/2"]
[ECO "C42"]
[WhiteElo "2412"]
[BlackElo "2345"]
[Annotator "TA"]
[PlyCount "54"]
[EventDate "2024.08.30"]
[EventCountry "IND"]
[SourceTitle "playchess.com"]
[Source "ChessBase"]
[SourceQuality "1"]
[TimeControl "5400+30"]

{[%evp 21,54,23,38,34,32,4,21,4,8,15,0,1,20,12,16,4,12,11,7,-6,0,0,-8,-10,-12,-19,7,0,5,0,0,0,14,-29,14]} 1. e4 {[%emt 0:00:06]} e5 {[%emt 0:02:15]} 2. Nf3 {[%emt 0:00:05]} Nf6 {[%emt 0:00:09]} 3. Nxe5 {[%emt 0:00:06]} d6 {[%emt 0:00:06]} 4. Nf3 {[%emt 0:00:04]} Nxe4 {[%emt 0:00:09]} 5. d4 {[%emt 0:00:08]} d5 {[%emt 0:00:37]} 6. Bd3 {[%emt 0:00:06]} Bd6 {[%emt 0:01:20]} 7. O-O {[%emt 0:00:08]} O-O {[%emt 0:00:07]} 8. c4 {[%emt 0:00:05]} c6 {[%emt 0:00:38]} 9. Nc3 {[%emt 0:00:08]} Nxc3 {[%emt 0:01:58]} 10. bxc3 {[%emt 0:00:05]} Bg4 {[%emt 0:03:24]} 11. h3 {[%emt 0:07:46]} Bh5 {[%emt 0:00:00]} 12. c5 {[%emt 0:01:36]} Bc7 {[%emt 0:00:18]} 13. Bf5 {[%emt 0:05:59]} Nd7 {[%emt 0:40:16][%cal Bb8d7,Bd7f8,Bf8g6,Bg6e7][%mdl 32]} 14. Qd3 {[%emt 0:11:35] The position is equal.} Bg6 {[%emt 0:00:32]} 15. Bg5 {[%emt 0:01:33]} Bxf5 {[%emt 0:01:40]} 16. Qxf5 {[%emt 0:00:13]} f6 {[%emt 0:00:02]} 17. Be3 {[%emt 0:16:37]} Re8 {[%emt 0:02:50]} 18. Rac1 {[%emt 0:05:28]} Nf8 {[%emt 0:04:15]} 19. c4 {[%emt 0:01:59]} Rb8 {[%emt 0:21:29]} 20. Nd2 {[%emt 0:07:21]} dxc4 {[%emt 0:02:07]} 21. Nxc4 {[%emt 0:00:56][%cal Oc4d6]} Ng6 {[%emt 0:00:14]} 22. Rfe1 {[%emt 0:10:03]} Kh8 {[%emt 0:02:53]} 23. a4 {[%emt 0:08:39]} Ne7 {[%emt 0:01:53]} 24. Qg4 {[%emt 0:00:11]} Ng6 {[%emt 0:00:09] Prevents Bf4.} 25. Qf5 {[%emt 0:00:05]} Ne7 {[%emt 0:00:03]} 26. Qg4 {[%emt 0:00:05]} Ng6 {[%emt 0:00:03] Wards off Bf4} 27. Qf5 {[%emt 0:00:16][%cal Oa4a5]} Ne7 {[%emt 0:00:01] Weighted Error Value: White=0.09 (flawless) /Black=0.04 (flawless) .  Inaccurate:     	White=2     	Black=2      OK:         	White=3     	Black=7      Best:        	---       	Black=1} 1/2-1/2

[Event "26th Tamil Nadu IM-Norm Chennai 2024"]
[Site "Chennai"]
[Date "2024.09.04"]
[Round "8.4"]
[White "Pawar, Harshit"]
[Black "Annageldyev, Orazly"]
[Result "1-0"]
[ECO "D35"]
[WhiteElo "2284"]
[BlackElo "2271"]
[Annotator "TA"]
[PlyCount "75"]
[EventDate "2024.08.30"]
[EventCountry "IND"]
[SourceTitle "playchess.com"]
[Source "ChessBase"]
[SourceQuality "1"]
[TimeControl "5400+30"]

{[%evp 17,75,31,36,15,17,8,0,-15,0,-37,36,0,-8,-56,-30,-33,-32,-39,-13,-104,0,-9,-16,0,0,-14,181,145,224,79,104,50,42,59,73,52,81,86,169,158,180,186,240,239,216,212,794,769,822,814,817,804,789,777,897,897,1039,1034,994,985]} 1. d4 {[%emt 0:00:45]} Nf6 {[%emt 0:00:18]} 2. c4 {[%emt 0:00:12]} e6 {[%emt 0:00:09]} 3. Nc3 {[%emt 0:01:22]} d5 {[%emt 0:00:08]} 4. cxd5 {[%emt 0:01:33]} exd5 {[%emt 0:00:12]} 5. Bg5 {[%emt 0:00:03]} Be7 {[%emt 0:00:28]} 6. Qc2 {[%emt 0:01:09]} Nbd7 {[%emt 0:00:25]} 7. e3 {[%emt 0:00:30]} O-O {[%emt 0:00:33]} 8. Bd3 {[%emt 0:01:14]} h6 {[%emt 0:00:16]} 9. Bh4 {[%emt 0:02:47]} b6 {[%emt 0:01:51]} 10. Nge2 {[%emt 0:01:27]} Bb7 {[%emt 0:00:10]} 11. f3 {[%emt 0:01:44]} c5 {[%emt 0:00:27]} 12. O-O-O {[%emt 0:04:06] The position is equal.} Ne8 {[%emt 0:21:07]} 13. Bf2 {[%emt 0:03:51]} cxd4 {[%emt 0:05:37]} (13... c4 $1 $15 14. Bh7+ Kh8) 14. exd4 {[%emt 0:01:53]} Nd6 {[%emt 0:03:02]} 15. b3 {[%emt 0:06:36]} (15. Kb1 $11 {feels stronger.}) 15... Rc8 {[%emt 0:03:29][%cal Ob6b5] Threatens to win with ...b5!} 16. Kb1 {[%emt 0:01:08] [#]} b5 $1 {[%emt 0:01:47] Strongly threatening ...b4.} 17. Qd2 $1 {[%emt 0:00:43]} b4 {[%emt 0:09:55]} 18. Na4 {[%emt 0:01:10] [#]} (18. Nb5 $1 $11) 18... Nc4 {[%emt 0:00:36]} 19. bxc4 $11 {[%emt 0:01:06]} dxc4 {[%emt 0:00:50]} 20. Bf5 {[%emt 0:05:42][%cal Oa4c5] Nc5! would now be deadly.} Bc6 $1 {[%emt 0:08:15]} 21. Nc5 {[%emt 0:01:24] And now Qc2 would win.} c3 $2 {[%emt 0:08:42]} (21... Qa5 $1 $11 {and Black is okay.}) 22. Qc2 $18 {[%emt 0:03:48]} Rb8 {[%emt 0:12:06]} (22... Bb5 $16) 23. Bxd7 {[%emt 0:07:44]} (23. d5 $1 $18 {[%cal Rd5c6] is more deadly.} Bb5 24. Nxd7 Bxd7 25. Nd4) 23... Bxd7 $16 {[%emt 0:00:30] [#]} 24. Nxd7 {[%emt 0:01:31]} ({Better is} 24. Rhe1 $1 $16) 24... Qxd7 $14 {[%emt 0:00:14]} 25. Nc1 {[%emt 0:02:56]} a5 {[%emt 0:02:05][%cal Ba7a5,Ba5a4][%mdl 32]} 26. Nb3 {[%emt 0:03:11][%cal Oh1e1]} a4 {[%emt 0:09:14]} 27. Nc5 {[%emt 0:00:01]} Bxc5 {[%emt 0:00:11]} (27... Qa7 $16 {was called for.}) 28. dxc5 $18 {[%emt 0:00:03]} Qb5 {[%emt 0:04:30]} 29. Qd3 {[%emt 0:00:40] aiming for Qxb5.} Qa5 {[%emt 0:00:45] [#]} (29... Qc6 {keeps fighting.}) 30. Bd4 $1 {[%emt 0:00:22]} Rfd8 {[%emt 0:01:02][%cal Od8d4]} 31. Qc4 {[%emt 0:00:51]} Rxd4 {[%emt 0:05:05]} (31... Qc7 32. Rhe1 Qxh2) 32. Rxd4 {[%emt 0:00:11] White is clearly winning.} ({Not} 32. Qxd4 b3 33. Rd3 c2+ 34. Kc1 bxa2 35. Kxc2 Qb5 $11) 32... b3 {[%emt 0:00:07]} 33. a3 {[%emt 0:00:56]} (33. Qxa4 c2+ 34. Kc1 Qc3 35. axb3 Rxb3 36. Rd8+ Kh7 37. Qe4+ g6 38. Qxc2 Qa1+ 39. Kd2 Qa5+ 40. Ke2 Qb5+ 41. Kf2 Rb2 $18) 33... c2+ {[%emt 0:00:38]} 34. Kb2 {[%emt 0:00:06]} Qc7 {[%emt 0:00:36]} 35. Qc3 {[%emt 0:02:40]} Re8 {[%emt 0:00:57]} 36. Rxa4 {[%emt 0:00:30]} Rd8 {[%emt 0:01:03]} 37. Kxb3 {[%emt 0:00:42]} Qc6 {[%emt 0:00:55]} 38. Qxc2 {[%emt 0:00:43] Weighted Error Value: White=0.19 (very precise) /Black=0.40.  Loses game:     	---       	Black=1      Mistake:       	White=4     	Black=6      Inaccurate:     	White=2     	Black=3      OK:         	White=5     	Black=4      Best:        	White=3     	---        Strong:       	White=2     	Black=1} 1-0

[Event "26th Tamil Nadu IM-Norm Chennai 2024"]
[Site "Chennai"]
[Date "2024.09.04"]
[Round "8.5"]
[White "Rohit S"]
[Black "Gochelashvili, David"]
[Result "1-0"]
[ECO "B72"]
[WhiteElo "2311"]
[BlackElo "2230"]
[Annotator "TA"]
[PlyCount "83"]
[EventDate "2024.08.30"]
[EventCountry "IND"]
[SourceTitle "playchess.com"]
[Source "ChessBase"]
[SourceQuality "1"]
[TimeControl "5400+30"]

{[%evp 10,83,51,50,44,50,40,45,44,35,31,33,68,58,49,48,73,20,20,23,31,21,22,31,18,22,13,14,17,14,50,29,31,48,79,91,98,85,92,79,92,106,117,112,84,56,44,63,106,104,110,0,0,0,0,0,0,0,0,0,81,81,297,0,29,31,167,167,818,565,605,527,2261,2026,29978,1146]} 1. e4 {[%emt 0:00:02]} c5 {[%emt 0:01:51]} 2. Nf3 {[%emt 0:00:06]} d6 {[%emt 0:00:06]} 3. d4 {[%emt 0:00:04]} cxd4 {[%emt 0:00:06]} 4. Nxd4 {[%emt 0:00:04]} Nf6 {[%emt 0:00:03]} 5. Nc3 {[%emt 0:00:08]} g6 {[%emt 0:00:10]} 6. Be3 {[%emt 0:00:05]} Nc6 {[%emt 0:00:05][%cal Bb8c6,Bc6e5,Be5c4][%mdl 32]} 7. f3 {[%emt 0:00:11] Inhibits Ng4.} h5 {[%emt 0:00:13]} 8. Bc4 {[%emt 0:00:17]} Bd7 {[%emt 0:00:13] White is slightly better.} 9. Bb3 {[%emt 0:01:42]} Bg7 {[%emt 0:00:21]} 10. Qd3 {[%emt 0:01:09]} Ne5 {[%emt 0:00:52] Prevents h3.} 11. Qe2 {[%emt 0:00:21]} Rc8 {[%emt 0:00:06]} 12. O-O {[%emt 0:03:02]} a6 {[%emt 0:00:57]} 13. h3 {[%emt 0:01:24]} (13. f4 $16 Neg4 14. h3 Nxe3 15. Qxe3) 13... Qc7 $11 {[%emt 0:00:22]} 14. f4 {[%emt 0:15:48]} Nc4 {[%emt 0:00:28] [#]} 15. e5 $1 {[%emt 0:07:11]} dxe5 {[%emt 0:07:43]} 16. fxe5 {[%emt 0:01:52]} Qxe5 {[%emt 0:00:07]} (16... Nxe5 $2 17. Bf4 Nfg4 18. Bxf7+ (18. hxg4 Qc5 $18) 18... Nxf7 19. Bxc7 $18) 17. Bxc4 {[%emt 0:00:20]} Rxc4 {[%emt 0:00:05]} 18. Qxc4 {[%emt 0:00:08]} Qxe3+ {[%emt 0:00:04]} 19. Kh1 {[%emt 0:00:08] Rae1 is the strong threat.} b5 {[%emt 0:18:35]} (19... Bxh3 $6 20. Rf3 Bxg2+ 21. Kxg2 Qd2+ (21... Qg5+ $2 22. Rg3 $18) 22. Nde2 $18) 20. Qc7 {[%emt 0:09:51] Qb8+ would kill now.} O-O $1 {[%emt 0:00:07][%cal Bh8f8,Bf8c8,Bc8c4][%mdl 32]} 21. Rad1 {[%emt 0:05:20][%cal Of1f6] Threatens to win with Rxf6!} Rc8 {[%emt 0:20:24]} 22. Qb7 {[%emt 0:01:05][%cal Of1f6]} Rc4 {[%emt 0:01:19]} (22... Bxh3 $2 23. Rd3 Bxg2+ 24. Qxg2 $18) 23. Rd3 {[%emt 0:20:49]} Qe5 {[%emt 0:00:24]} 24. Nf3 {[%emt 0:03:23] White is more active.} Qc7 {[%emt 0:00:13]} 25. Qxa6 {[%emt 0:00:25]} b4 {[%emt 0:03:07]} 26. Nd5 {[%emt 0:04:19]} Nxd5 {[%emt 0:00:08]} 27. Qa8+ {[%emt 0:00:11]} Bf8 {[%emt 0:06:35]} 28. Qxd5 {[%emt 0:00:06]} (28. Rxd5 $2 Bc6 (28... Rxc2 29. Ne5 $11) 29. Qd8 Bxd5 30. Qxd5 e6 $19 (30... Rxc2 31. Ng5 $17)) 28... Be6 {[%emt 0:00:09]} 29. Qa8 {[%emt 0:04:56] Hoping for Qe8.} Rxc2 {[%emt 0:00:07][%cal Oe6c4]} 30. Ng5 {[%emt 0:00:37]} (30. Rd8 $16 Bc8 31. Rfd1) 30... Bc4 {[%emt 0:30:03]} 31. Rd8 $40 {[%emt 0:00:18][%mdl 128] White attacks. The board is on fire.} Qxd8 {[%emt 0:00:05]} 32. Qxd8 {[%emt 0:00:07][%cal Od8e8] Threatening mate with Qe8!} Bxf1 {[%emt 0:00:03]} 33. Qd1 {[%emt 0:04:57][%csl LRc2,LRf1]} Rf2 {[%emt 0:07:17]} 34. Qd4 $1 {[%emt 0:05:14][%csl LRb4,LRf2]} Bxg2+ {[%emt 0:00:04]} (34... Rc2 $1 $11 {keeps the balance.} 35. Qd1 Rf2 (35... Bxg2+ 36. Kg1 $11) (35... Rxg2 36. Ne4 $14)) 35. Kg1 $16 {[%emt 0:03:35]} Rc2 {[%emt 0:03:16] [#]} (35... Rf5 $16 36. Ne6 b3 (36... Bxh3 $2 37. Nxf8 Rf1+ 38. Kh2 $18)) 36. Qd1 $2 {[%emt 0:00:00]} (36. Qd3 $1 $18 {[%cal Rd3c2]} Rc5 (36... Rxb2 $2 37. Qc4 $18) 37. Qe3 (37. Nxf7 Kxf7 38. Kxg2 Kg7 $16) 37... Rxg5 (37... Rc2 $2 38. Qb3 $18) 38. Qxg5 Bxh3 39. a4 bxa3 40. bxa3) 36... b3 {[%emt 0:01:52]} (36... Rxb2 $2 {perishes.} 37. Qc1 $18) 37. axb3 {[%emt 0:00:16]} Rxb2 {[%emt 0:00:01] [#]} (37... Rc5 $1 $14 38. Nxf7 Bb7) 38. Qc1 $1 $18 {[%emt 0:01:48]} Bg7 {[%emt 0:00:02]} (38... Rxb3 39. Kxg2 Rb6) 39. Qc8+ {[%emt 0:00:27]} Bf8 {[%emt 0:00:01]} 40. Qc4 {[%emt 0:00:28] Repels Bd5} e6 {[%emt 0:00:53] ...Bd5 would now be deadly.} 41. Qc7 {[%emt 0:00:17]} Kg7 {[%emt 0:00:59]} 42. Qc3+ {[%emt 0:00:31] Weighted Error Value: White=0.27 (precise) /Black=0.46.  Loses game:     	---       	Black=1      Missed win:     	White=1     	---        Mistake:       	White=2     	Black=3      Inaccurate:     	White=1     	Black=7      OK:         	White=15    	Black=11     Best:        	White=2     	Black=3      Strong:       	White=2     	Black=1} (42. Qxf7+ $142 Kh6 43. Nxe6 (43. Qxf8+ Kxg5 44. Qc5+ Bd5 $18) 43... Bc5+ 44. Nxc5 Bxh3 45. Qf8+ Kg5 46. Ne4+ (46. Qd8+ Kg4 $18) 46... Kg4 47. Nf2+ Kg5 48. Nxh3+ Kg4 49. Nf2+ Kg5 50. Qd8+ Kf5 51. Qd5+ Kf6 52. Ne4+ Ke7 53. Qe5+ Kd7 54. Qxb2) 1-0